fUSD/lending_fUSD_20260526
["ID","MTS","AMOUNT","RATE_DAILY","PERIOD"]
[423047007,1779796765000,-579.76676179,0.000411,120]
[423047005,1779796765000,-579.76676179,0.000411,120]
[423047000,1779796765000,-579.76676179,0.000411,120]
[423047003,1779796765000,-579.76676179,0.000411,120]
[423047004,1779796765000,-579.76676179,0.000411,120]
[423047001,1779796765000,-579.76676179,0.000411,120]
[423047002,1779796765000,-579.76676179,0.000411,120]
[423046998,1779796765000,-579.76676179,0.000411,120]
[423047011,1779796765000,-579.76676179,0.000411,120]
[423047006,1779796765000,-579.76676179,0.000411,120]
[423047014,1779796765000,-579.76676179,0.000411,120]
[423046999,1779796765000,-579.76676179,0.000411,120]
[423047016,1779796765000,-579.76,0.000411,120]
[423047015,1779796765000,-579.76676179,0.000411,120]
[423047030,1779796765000,-1352.78911084,0.000411,120]
[423047029,1779796765000,-1352.78911084,0.000411,120]
[423047028,1779796765000,-1352.78911084,0.000411,120]
[423047027,1779796765000,-1352.78911084,0.000411,120]
[423047025,1779796765000,-1352.78911084,0.000411,120]
[423047023,1779796765000,-1352.78911084,0.000411,120]
[423047026,1779796765000,-1352.78911084,0.000411,120]
[423047022,1779796765000,-1352.78911084,0.000411,120]
[423047020,1779796765000,-1352.78911084,0.000411,120]
[423047021,1779796765000,-1352.78911084,0.000411,120]
[423047019,1779796765000,-1352.78911084,0.000411,120]
[423047018,1779796765000,-1352.78911084,0.000411,120]
[423047017,1779796765000,-1352.78911084,0.000411,120]
[423047013,1779796765000,-579.76676179,0.000411,120]
[423047024,1779796765000,-1352.78911084,0.000411,120]
[423047041,1779796766000,-807.50107103,0.000411,120]
[423047044,1779796766000,-807.50107103,0.000411,120]
[423047043,1779796766000,-807.50107103,0.000411,120]
[423047045,1779796766000,-807.50107103,0.000411,120]
[423047042,1779796766000,-807.50107103,0.000411,120]
[423047040,1779796766000,-807.50107103,0.000411,120]
[423047038,1779796766000,-807.50107103,0.000411,120]
[423047031,1779796766000,-1352.78911084,0.000411,120]
[423047037,1779796766000,-807.50107103,0.000411,120]
[423047036,1779796766000,-1352.78,0.000411,120]
[423047034,1779796766000,-1352.78911084,0.000411,120]
[423047035,1779796766000,-1352.78911084,0.000411,120]
[423047033,1779796766000,-1352.78911084,0.000411,120]
[423047032,1779796766000,-1352.78911084,0.000411,120]
[423047039,1779796766000,-807.50107103,0.000411,120]
[423047046,1779796766000,-807.50107103,0.000411,120]
[423047047,1779796766000,-807.50107103,0.000411,120]
[423047048,1779796766000,-807.50107103,0.000411,120]
[423047049,1779796766000,-807.50107103,0.000411,120]
[423047062,1779796766000,-1884.16916574,0.000411,120]
[423047060,1779796766000,-1884.16916574,0.000411,120]
[423047061,1779796766000,-1884.16916574,0.000411,120]
[423047059,1779796766000,-1884.16916574,0.000411,120]
[423047058,1779796766000,-1884.16916574,0.000411,120]
[423047057,1779796766000,-1884.16916574,0.000411,120]
[423047063,1779796766000,-1884.16916574,0.000411,120]
[423047054,1779796766000,-807.50107103,0.000411,120]
[423047055,1779796766000,-807.50107103,0.000411,120]
[423047053,1779796766000,-807.50107103,0.000411,120]
[423047052,1779796766000,-807.50107103,0.000411,120]
[423047051,1779796766000,-807.50107103,0.000411,120]
[423047050,1779796766000,-807.50107103,0.000411,120]
[423047056,1779796766000,-807.5,0.000411,120]
[423047076,1779796767000,-1884.16,0.000411,120]
[423047075,1779796767000,-1884.16916574,0.000411,120]
[423047073,1779796767000,-1884.16916574,0.000411,120]
[423047072,1779796767000,-1884.16916574,0.000411,120]
[423047070,1779796767000,-1884.16916574,0.000411,120]
[423047066,1779796767000,-1884.16916574,0.000411,120]
[423047069,1779796767000,-1884.16916574,0.000411,120]
[423047068,1779796767000,-1884.16916574,0.000411,120]
[423047067,1779796767000,-1884.16916574,0.000411,120]
[423047065,1779796767000,-1884.16916574,0.000411,120]
[423047064,1779796767000,-1884.16916574,0.000411,120]
[423047071,1779796767000,-1884.16916574,0.000411,120]
[423047078,1779796767000,-532.96946723,0.00041126,120]
[423047074,1779796767000,-1884.16916574,0.000411,120]
[423047079,1779796767000,-300.0,0.0004115,120]
[423047077,1779796767000,-3730.78627059,0.00041126,120]
[423047092,1779796767000,-152.0,0.000413,120]
[423047091,1779796767000,-4000.0,0.000413,120]
[423047090,1779796767000,-1552.48107651,0.00041276,120]
[423047088,1779796767000,-1552.48107651,0.0004123,120]
[423047086,1779796767000,-160.0,0.000412,55]
[423047089,1779796767000,-540.251457,0.00041242,120]
[423047083,1779796767000,-4000.0,0.000412,120]
[423047085,1779796767000,-826.7,0.000412,120]
[423047084,1779796767000,-10000.0,0.000412,60]
[423047081,1779796767000,-500.0,0.0004115,120]
[423047082,1779796767000,-1552.48107651,0.00041184,120]
[423047080,1779796767000,-398.85921568,0.0004115,120]
[423047087,1779796767000,-271949.0,0.000412,30]
[423047101,1779796768000,-819.62837232,0.0004145,120]
[423047104,1779796768000,-162.12420923,0.00041475,120]
[423047105,1779796768000,-158.0,0.00041484,120]
[423047102,1779796768000,-245.33,0.0004145,120]
[423047103,1779796768000,-1552.48107651,0.00041461,120]
[423047099,1779796768000,-4000.0,0.000414,120]
[423047093,1779796768000,-1552.48107651,0.00041323,120]
[423047098,1779796768000,-718.0,0.00041397,30]
[423047097,1779796768000,-207.26,0.00041379,120]
[423047096,1779796768000,-167.06718781,0.0004137,120]
[423047094,1779796768000,-1552.48107651,0.00041369,120]
[423047106,1779796768000,-154.0,0.00041484,120]
[423047100,1779796768000,-1552.48107651,0.00041415,120]
[423047109,1779796768000,-157.0,0.00041484,120]
[423047095,1779796768000,-500.0,0.00041369,40]
[423047108,1779796768000,-156.0,0.00041484,120]
[423047107,1779796768000,-291.0,0.00041484,120]
[423047122,1779796768000,-500.0,0.000415,45]
[423047121,1779796768000,-500.0,0.000415,45]
[423047120,1779796768000,-4000.0,0.000415,120]
[423047119,1779796768000,-200.0,0.00041499,120]
[423047117,1779796768000,-540.63,0.00041485,120]
[423047118,1779796768000,-1000.0,0.00041499,120]
[423047114,1779796768000,-211.0,0.00041485,120]
[423047115,1779796768000,-156.0,0.00041485,120]
[423047111,1779796768000,-156.0,0.00041484,120]
[423047112,1779796768000,-165.0,0.00041484,120]
[423047113,1779796768000,-157.0,0.00041484,120]
[423047110,1779796768000,-159.0,0.00041484,120]
[423047116,1779796768000,-151.0,0.00041485,120]
[423047125,1779796769000,-500.0,0.000415,45]
[423047124,1779796769000,-500.0,0.000415,45]
[423047123,1779796769000,-500.0,0.000415,45]
[423047127,1779796769000,-500.0,0.000415,45]
[423047128,1779796769000,-500.0,0.000415,45]
[423047130,1779796769000,-500.0,0.000415,45]
[423047131,1779796769000,-500.0,0.000415,45]
[423047129,1779796769000,-500.0,0.000415,45]
[423047132,1779796769000,-134.4167814,0.000415,45]
[423047126,1779796769000,-500.0,0.000415,45]
[423047161,1779797431000,-158.81,0.0001845,2]
[423047159,1779797431000,-1163.56769756,0.0001831,2]
[423047162,1779797431000,-872.67577315,0.00018471,2]
[423047163,1779797431000,-6710.88,0.0001872,2]
[423047165,1779797431000,-872.67577315,0.00019822,2]
[423047164,1779797431000,-158.81,0.0001968,2]
[423047169,1779797431000,-198.0,0.0002,2]
[423047171,1779797431000,-166.86,0.00020606,2]
[423047172,1779797431000,-158.81,0.0002091,2]
[423047167,1779797431000,-593.0,0.0002,2]
[423047170,1779797431000,-377.6,0.00020381,2]
[423047166,1779797431000,-229.1363676,0.00019876,2]
[423047156,1779797431000,-158.81,0.0001722,2]
[423047147,1779797431000,-314.56790507,0.000125,2]
[423047155,1779797431000,-377.6,0.00016438,2]
[423047157,1779797431000,-524.45016447,0.0001763,2]
[423047160,1779797431000,-377.6,0.0001841,2]
[423047158,1779797431000,-872.67577317,0.000179,2]
[423047153,1779797431000,-158.81,0.0001476,2]
[423047152,1779797431000,-524.45016448,0.00014086,2]
[423047151,1779797431000,-208.92835186,0.00013809,2]
[423047150,1779797431000,-406.4562,0.0001366,2]
[423047149,1779797431000,-158.81,0.0001353,2]
[423047148,1779797431000,-500.0,0.00012896,2]
[423047146,1779797431000,-169.16,0.00011715,2]
[423047145,1779797431000,-150.0,0.00011363,2]
[423047154,1779797431000,-158.81,0.0001599,2]
[423047168,1779797431000,-211.0,0.0002,2]
[423047173,1779797431000,-211.0,0.00021,2]
[423047174,1779797431000,-198.0,0.00021,2]
[423047175,1779797431000,-36953.11141348,0.00021073,2]
[423047209,1779797431000,-218.21,0.00023056,2]
[423047207,1779797431000,-1549.86,0.00023,2]
[423047205,1779797431000,-211.0,0.00023,2]
[423047206,1779797431000,-198.0,0.00023,2]
[423047204,1779797431000,-500.0,0.00022877,2]
[423047197,1779797431000,-2498.31,0.00022608,2]
[423047201,1779797431000,-367.97,0.00022818,2]
[423047203,1779797431000,-500.0,0.00022852,2]
[423047193,1779797431000,-377.6,0.00022353,2]
[423047202,1779797431000,-1341.12,0.00022852,2]
[423047199,1779797431000,-553.54,0.00022717,2]
[423047195,1779797431000,-644.62,0.00022608,2]
[423047198,1779797431000,-200.0,0.00022612,2]
[423047208,1779797431000,-224.0,0.00023041,2]
[423047191,1779797431000,-166.86,0.00022233,30]
[423047179,1779797431000,-524.45016447,0.00021173,2]
[423047177,1779797431000,-41434.93097738,0.00021073,2]
[423047176,1779797431000,-61609.43500914,0.00021073,2]
[423047178,1779797431000,-166.86,0.00021148,2]
[423047200,1779797431000,-166.86,0.00022775,30]
[423047181,1779797431000,-166.86,0.00021691,2]
[423047180,1779797431000,-872.67577315,0.00021173,2]
[423047184,1779797431000,-10000.0,0.00022,10]
[423047185,1779797431000,-211.0,0.00022,2]
[423047182,1779797431000,-500.0,0.000219,2]
[423047187,1779797431000,-198.0,0.00022,2]
[423047190,1779797431000,-158.81,0.0002214,2]
[423047183,1779797431000,-10000.0,0.00022,10]
[423047252,1779797432000,-671.0,0.000261,2]
[423047249,1779797432000,-158.81,0.00025829,2]
[423047248,1779797432000,-150.99,0.00025786,2]
[423047244,1779797432000,-6710.88,0.00025786,2]
[423047241,1779797432000,-5000.0,0.00025602,2]
[423047246,1779797432000,-309.12,0.00025786,2]
[423047245,1779797432000,-169.0,0.00025786,2]
[423047243,1779797432000,-150.0,0.00025756,2]
[423047242,1779797432000,-157.99,0.00025724,2]
[423047251,1779797432000,-505.0,0.00026013,2]
[423047247,1779797432000,-627.14,0.00025786,2]
[423047254,1779797432000,-377.6,0.00026296,2]
[423047256,1779797432000,-1502.63829208,0.00026492,2]
[423047255,1779797432000,-579.95153286,0.00026459,2]
[423047257,1779797432000,-9999.99,0.00026591,2]
[423047258,1779797432000,-3145.5,0.00026591,2]
[423047261,1779797432000,-2559.86,0.00026591,2]
[423047263,1779797432000,-4770.81,0.00026591,2]
[423047262,1779797432000,-18086.55,0.00026591,2]
[423047259,1779797432000,-3661.93,0.00026591,5]
[423047260,1779797432000,-6271.14,0.00026591,2]
[423047264,1779797432000,-505.0,0.00026944,3]
[423047266,1779797432000,-215.42269777,0.00027,3]
[423047267,1779797432000,-158.81,0.00027059,2]
[423047250,1779797432000,-4684.8,0.00026,2]
[423047253,1779797432000,-168.0,0.000261,2]
[423047240,1779797432000,-1000.0,0.000256,2]
[423047222,1779797432000,-174.794003,0.00023839,2]
[423047239,1779797432000,-505.0,0.00025082,2]
[423047269,1779797432000,-172.46143003,0.0002729,2]
[423047211,1779797432000,-503.56250299,0.00023126,2]
[423047215,1779797432000,-262.91,0.00023658,2]
[423047212,1779797432000,-150.0,0.00023244,2]
[423047213,1779797432000,-158.81,0.00023369,2]
[423047216,1779797432000,-68.72597011,0.00023688,2]
[423047218,1779797432000,-169.48,0.000237,2]
[423047227,1779797432000,-169.0,0.00024174,2]
[423047217,1779797432000,-431.27402989,0.00023688,2]
[423047220,1779797432000,-2207.18521322,0.00023839,2]
[423047224,1779797432000,-211.0,0.00024,2]
[423047223,1779797432000,-8385.24,0.00023955,2]
[423047237,1779797432000,-212.0,0.00025,2]
[423047219,1779797432000,-653.66405688,0.00023839,2]
[423047225,1779797432000,-198.0,0.00024,2]
[423047214,1779797432000,-169.16,0.00023429,2]
[423047228,1779797432000,-309.12,0.00024174,2]
[423047230,1779797432000,-2211.99200442,0.00024234,2]
[423047231,1779797432000,-377.6,0.00024324,2]
[423047229,1779797432000,-627.14,0.00024174,2]
[423047233,1779797432000,-157.99,0.00024499,2]
[423047232,1779797432000,-205.44,0.00024498,2]
[423047235,1779797432000,-1000.0,0.00024658,2]
[423047234,1779797432000,-158.81,0.00024599,2]
[423047236,1779797432000,-326.4,0.00024658,2]
[423047238,1779797432000,-198.0,0.00025,2]
[423047221,1779797432000,-501.4427202,0.00023839,2]
[423047268,1779797432000,-160.45,0.00027083,2]
[423047210,1779797432000,-165.88,0.00023108,2]
[423047271,1779797432000,-200.0,0.00027397,2]
[423047301,1779797432000,-2000.0,0.00028098,2]
[423047303,1779797432000,-168.28,0.00028132,30]
[423047305,1779797432000,-420.6307487,0.00028199,2]
[423047304,1779797432000,-530.13453023,0.00028199,2]
[423047310,1779797432000,-530.13453023,0.00028199,2]
[423047311,1779797432000,-530.13453023,0.00028199,2]
[423047306,1779797432000,-530.13453023,0.00028199,2]
[423047307,1779797432000,-530.13453023,0.00028199,2]
[423047308,1779797432000,-530.13453023,0.00028199,2]
[423047309,1779797432000,-530.13453023,0.00028199,2]
[423047312,1779797432000,-530.13453023,0.00028199,2]
[423047313,1779797432000,-530.13453023,0.00028199,2]
[423047315,1779797432000,-530.13453023,0.00028199,2]
[423047319,1779797432000,-530.13453023,0.00028199,2]
[423047318,1779797432000,-530.13453023,0.00028199,2]
[423047317,1779797432000,-530.13453023,0.00028199,2]
[423047316,1779797432000,-530.13453023,0.00028199,2]
[423047320,1779797432000,-530.13453023,0.00028199,2]
[423047314,1779797432000,-530.13453023,0.00028199,2]
[423047321,1779797432000,-530.13453023,0.00028199,2]
[423047322,1779797432000,-530.13453023,0.00028199,2]
[423047323,1779797432000,-530.13453023,0.00028199,2]
[423047325,1779797432000,-530.13453023,0.00028199,2]
[423047326,1779797432000,-530.13453023,0.00028199,2]
[423047327,1779797432000,-530.13453023,0.00028199,2]
[423047324,1779797432000,-530.13453023,0.00028199,2]
[423047265,1779797432000,-157.99,0.00026949,2]
[423047302,1779797432000,-150.22,0.00028122,30]
[423047300,1779797432000,-6693.1284,0.00028098,2]
[423047226,1779797432000,-4684.8,0.00024,2]
[423047296,1779797432000,-200.0,0.0002807,2]
[423047273,1779797432000,-300.0,0.00027397,2]
[423047272,1779797432000,-1500.0,0.00027397,2]
[423047274,1779797432000,-1467.22,0.00027397,2]
[423047275,1779797432000,-326.4,0.00027397,2]
[423047270,1779797432000,-1168.65856997,0.0002729,2]
[423047276,1779797432000,-1887.99983003,0.00027397,10]
[423047277,1779797432000,-5291.20016997,0.00027397,10]
[423047278,1779797432000,-593.0,0.000275,7]
[423047280,1779797432000,-150.0,0.00027521,2]
[423047279,1779797432000,-4684.8,0.000275,2]
[423047282,1779797432000,-234.5,0.0002755,2]
[423047283,1779797432000,-233.43,0.0002755,2]
[423047281,1779797432000,-163.89,0.0002755,30]
[423047295,1779797432000,-200.0,0.0002807,2]
[423047286,1779797432000,-252.9,0.00027588,2]
[423047294,1779797432000,-200.0,0.0002807,2]
[423047293,1779797432000,-200.0,0.0002807,2]
[423047291,1779797432000,-172.89999,0.00028,2]
[423047284,1779797432000,-163.9,0.0002755,30]
[423047299,1779797432000,-2500.0,0.00028095,2]
[423047298,1779797432000,-309.77835106,0.0002807,2]
[423047292,1779797432000,-200.0,0.0002807,2]
[423047288,1779797432000,-505.0,0.00027875,4]
[423047297,1779797432000,-200.0,0.0002807,2]
[423047289,1779797432000,-167.1,0.00027925,2]
[423047287,1779797432000,-150.0,0.00027588,2]
[423047285,1779797432000,-233.58,0.0002755,2]
[423047290,1779797432000,-1502.63829205,0.00027937,2]
[423047348,1779797433000,-530.13453023,0.00028199,2]
[423047339,1779797433000,-530.13453023,0.00028199,2]
[423047337,1779797433000,-530.13453023,0.00028199,2]
[423047345,1779797433000,-530.13453023,0.00028199,2]
[423047341,1779797433000,-530.13453023,0.00028199,2]
[423047360,1779797433000,-676.36815896,0.00028199,2]
[423047353,1779797433000,-530.13453023,0.00028199,2]
[423047352,1779797433000,-530.13453023,0.00028199,2]
[423047354,1779797433000,-676.36815896,0.00028199,2]
[423047349,1779797433000,-530.13453023,0.00028199,2]
[423047340,1779797433000,-530.13453023,0.00028199,2]
[423047336,1779797433000,-530.13453023,0.00028199,2]
[423047342,1779797433000,-530.13453023,0.00028199,2]
[423047332,1779797433000,-530.13453023,0.00028199,2]
[423047338,1779797433000,-530.13453023,0.00028199,2]
[423047343,1779797433000,-530.13453023,0.00028199,2]
[423047346,1779797433000,-530.13453023,0.00028199,2]
[423047347,1779797433000,-530.13453023,0.00028199,2]
[423047329,1779797433000,-530.13453023,0.00028199,2]
[423047328,1779797433000,-530.13453023,0.00028199,2]
[423047331,1779797433000,-530.13453023,0.00028199,2]
[423047334,1779797433000,-530.13453023,0.00028199,2]
[423047330,1779797433000,-530.13453023,0.00028199,2]
[423047333,1779797433000,-530.13453023,0.00028199,2]
[423047335,1779797433000,-530.13453023,0.00028199,2]
[423047350,1779797433000,-530.13453023,0.00028199,2]
[423047344,1779797433000,-530.13453023,0.00028199,2]
[423047355,1779797433000,-676.36815896,0.00028199,2]
[423047367,1779797433000,-676.36815896,0.00028199,2]
[423047357,1779797433000,-676.36815896,0.00028199,2]
[423047385,1779797433000,-392.35244373,0.00028199,2]
[423047383,1779797433000,-655.55683098,0.00028199,2]
[423047382,1779797433000,-655.55683098,0.00028199,2]
[423047379,1779797433000,-655.55683098,0.00028199,2]
[423047381,1779797433000,-148.96904638,0.00028199,2]
[423047380,1779797433000,-506.5877846,0.00028199,2]
[423047384,1779797433000,-655.55683098,0.00028199,2]
[423047358,1779797433000,-676.36815896,0.00028199,2]
[423047377,1779797433000,-676.36815896,0.00028199,2]
[423047375,1779797433000,-676.36815896,0.00028199,2]
[423047376,1779797433000,-676.36815896,0.00028199,2]
[423047374,1779797433000,-676.36815896,0.00028199,2]
[423047368,1779797433000,-676.36815896,0.00028199,2]
[423047364,1779797433000,-676.36815896,0.00028199,2]
[423047378,1779797433000,-676.36815896,0.00028199,2]
[423047362,1779797433000,-676.36815896,0.00028199,2]
[423047370,1779797433000,-676.36815896,0.00028199,2]
[423047356,1779797433000,-676.36815896,0.00028199,2]
[423047359,1779797433000,-676.36815896,0.00028199,2]
[423047351,1779797433000,-530.13453023,0.00028199,2]
[423047369,1779797433000,-676.36815896,0.00028199,2]
[423047361,1779797433000,-676.36815896,0.00028199,2]
[423047363,1779797433000,-676.36815896,0.00028199,2]
[423047373,1779797433000,-676.36815896,0.00028199,2]
[423047371,1779797433000,-676.36815896,0.00028199,2]
[423047366,1779797433000,-676.36815896,0.00028199,2]
[423047365,1779797433000,-676.36815896,0.00028199,2]
[423047372,1779797433000,-676.36815896,0.00028199,2]
[423047399,1779797437000,-377.6,0.00028267,2]
[423047397,1779797437000,-4684.8,0.000282,2]
[423047395,1779797437000,-655.55683098,0.00028199,2]
[423047396,1779797437000,-655.55683097,0.00028199,2]
[423047394,1779797437000,-655.55683098,0.00028199,2]
[423047393,1779797437000,-655.55683098,0.00028199,2]
[423047387,1779797437000,-150.0,0.00025008,2]
[423047390,1779797437000,-655.55683098,0.00028199,2]
[423047388,1779797437000,-233.92,0.0002755,2]
[423047392,1779797437000,-655.55683098,0.00028199,2]
[423047389,1779797437000,-263.20438725,0.00028199,2]
[423047386,1779797437000,-175.44,0.00024658,2]
[423047398,1779797437000,-150.22,0.00028219,7]
[423047391,1779797437000,-655.55683098,0.00028199,2]
[423047401,1779797437000,-150.22,0.00028317,2]
[423047407,1779797437000,-2239.20212515,0.00028509,2]
[423047400,1779797437000,-168.28,0.00028276,7]
[423047402,1779797437000,-166.8,0.00028378,2]
[423047406,1779797437000,-152.9955088,0.00028466,2]
[423047408,1779797437000,-150.22,0.00028512,7]
[423047412,1779797437000,-500.0,0.0002857,2]
[423047404,1779797437000,-168.28,0.00028421,2]
[423047414,1779797437000,-150.22,0.00028707,30]
[423047417,1779797437000,-500.0,0.00028791,120]
[423047411,1779797437000,-500.0,0.0002857,7]
[423047409,1779797437000,-168.28,0.00028566,30]
[423047413,1779797437000,-150.22,0.00028609,2]
[423047405,1779797437000,-166.6108065,0.00028466,2]
[423047403,1779797437000,-150.22,0.00028414,30]
[423047416,1779797437000,-5000.0,0.00028742,2]
[423047410,1779797437000,-500.0,0.0002857,7]
[423047415,1779797437000,-168.28,0.0002871,7]
[423047434,1779797438000,-500.0,0.00028841,2]
[423047430,1779797438000,-500.0,0.00028841,7]
[423047435,1779797438000,-500.0,0.00028841,2]
[423047438,1779797438000,-500.0,0.00028841,2]
[423047440,1779797438000,-552.6029531,0.00028841,120]
[423047439,1779797438000,-500.0,0.00028841,2]
[423047442,1779797438000,-500.0,0.00028841,30]
[423047447,1779797438000,-168.28,0.00028855,2]
[423047451,1779797438000,-500.0,0.00028889,2]
[423047453,1779797438000,-500.0,0.00028889,2]
[423047443,1779797438000,-500.0,0.00028841,30]
[423047437,1779797438000,-500.0,0.00028841,2]
[423047444,1779797438000,-500.0,0.00028841,30]
[423047432,1779797438000,-500.0,0.00028841,7]
[423047421,1779797438000,-1931.53,0.00028792,2]
[423047433,1779797438000,-384.87523742,0.00028841,7]
[423047419,1779797438000,-4995.0,0.00028792,2]
[423047420,1779797438000,-4995.0,0.00028792,2]
[423047418,1779797438000,-500.0,0.00028791,30]
[423047424,1779797438000,-150.22,0.00028804,7]
[423047425,1779797438000,-505.0,0.00028805,5]
[423047423,1779797438000,-163.390817,0.00028797,7]
[423047436,1779797438000,-500.0,0.00028841,2]
[423047426,1779797438000,-152.0,0.00028834,7]
[423047454,1779797438000,-500.0,0.00028889,2]
[423047422,1779797438000,-3863.06,0.00028792,2]
[423047428,1779797438000,-500.0,0.00028841,7]
[423047427,1779797438000,-500.0,0.00028841,7]
[423047441,1779797438000,-500.0,0.00028841,30]
[423047431,1779797438000,-500.0,0.00028841,7]
[423047429,1779797438000,-500.0,0.00028841,7]
[423047449,1779797438000,-565.42,0.00028889,7]
[423047457,1779797438000,-152.0,0.00028897,7]
[423047450,1779797438000,-500.0,0.00028889,2]
[423047489,1779797438000,-150.22,0.00029,30]
[423047497,1779797438000,-2023.2261267,0.00029,2]
[423047493,1779797438000,-3400.9201128,0.00029,2]
[423047494,1779797438000,-209.62,0.00029,2]
[423047491,1779797438000,-786.1184789,0.00029,2]
[423047490,1779797438000,-209.62,0.00029,2]
[423047495,1779797438000,-6001.7141992,0.00029,2]
[423047496,1779797438000,-1998.0724838,0.00029,2]
[423047492,1779797438000,-475.81229096,0.00029,2]
[423047488,1779797438000,-168.31,0.00029,30]
[423047480,1779797438000,-500.0,0.00028999,30]
[423047476,1779797438000,-500.0,0.00028999,2]
[423047478,1779797438000,-500.0,0.00028999,2]
[423047448,1779797438000,-500.0,0.00028889,7]
[423047484,1779797438000,-164.74,0.00029,2]
[423047482,1779797438000,-494.2,0.00029,2]
[423047487,1779797438000,-209.63,0.00029,2]
[423047446,1779797438000,-500.0,0.00028841,30]
[423047452,1779797438000,-500.0,0.00028889,2]
[423047456,1779797438000,-150.0,0.00028897,2]
[423047455,1779797438000,-500.0,0.00028889,2]
[423047461,1779797438000,-215.42269777,0.00028959,2]
[423047485,1779797438000,-164.73,0.00029,2]
[423047459,1779797438000,-4288.93127897,0.000289,2]
[423047463,1779797438000,-368.95959538,0.0002899,10]
[423047462,1779797438000,-170.07957496,0.00028971,2]
[423047458,1779797438000,-157.76,0.000289,7]
[423047483,1779797438000,-494.2,0.00029,2]
[423047474,1779797438000,-7547.39040462,0.0002899,10]
[423047486,1779797438000,-5363.24,0.00029,2]
[423047460,1779797438000,-150.22,0.00028902,2]
[423047498,1779797441000,-688.8580236,0.00029,2]
[423047501,1779797442000,-385.09,0.00029,2]
[423047500,1779797442000,-21924.04837877,0.00029,2]
[423047499,1779797442000,-41362.50535716,0.00029,2]
[423047507,1779797442000,-1147.75004749,0.00029,2]
[423047513,1779797442000,-270.6809728,0.00029,2]
[423047506,1779797442000,-464.78219363,0.00029,2]
[423047540,1779797443000,-1000.0,0.00029505,2]
[423047537,1779797443000,-1000.0,0.00029505,2]
[423047547,1779797443000,-800.0,0.00029521,2]
[423047542,1779797443000,-500.0,0.00029521,2]
[423047545,1779797443000,-800.0,0.00029521,2]
[423047551,1779797443000,-800.0,0.00029521,2]
[423047554,1779797443000,-200.0,0.00029521,2]
[423047553,1779797443000,-800.0,0.00029521,2]
[423047552,1779797443000,-800.0,0.00029521,2]
[423047557,1779797443000,-200.0,0.00029521,2]
[423047556,1779797443000,-200.0,0.00029521,2]
[423047555,1779797443000,-200.0,0.00029521,2]
[423047558,1779797443000,-200.0,0.00029521,2]
[423047560,1779797443000,-200.0,0.00029521,2]
[423047561,1779797443000,-200.0,0.00029521,2]
[423047564,1779797443000,-346.0,0.00029521,2]
[423047562,1779797443000,-200.0,0.00029521,2]
[423047563,1779797443000,-200.0,0.00029521,2]
[423047566,1779797443000,-500.0,0.00029521,2]
[423047570,1779797443000,-500.0,0.00029521,2]
[423047578,1779797443000,-200.0,0.00029521,2]
[423047576,1779797443000,-200.0,0.00029521,2]
[423047572,1779797443000,-200.0,0.00029521,2]
[423047565,1779797443000,-500.0,0.00029521,2]
[423047575,1779797443000,-200.0,0.00029521,2]
[423047567,1779797443000,-500.0,0.00029521,2]
[423047569,1779797443000,-500.0,0.00029521,2]
[423047559,1779797443000,-200.0,0.00029521,2]
[423047548,1779797443000,-800.0,0.00029521,2]
[423047541,1779797443000,-1000.0,0.00029505,2]